bitfinex/quotes_BTCUSD_20250714
["timestamp","ask_amount","ask_price","bid_price","bid_amount"]
[1752485350301,0.71434906,121900.0,121890.0,0.001]
[1752485350525,0.73895206,121900.0,121890.0,0.001]
[1752485350768,0.86687206,121900.0,121890.0,0.001]
[1752485352037,0.67441121,121900.0,121890.0,0.001]
[1752485352255,0.64980821,121900.0,121890.0,0.001]
[1752485353784,0.73112555,121900.0,121890.0,0.001]
[1752485354254,0.64980821,121900.0,121890.0,0.001]
[1752485354449,0.66434906,121900.0,121890.0,0.001]
[1752485356960,0.99689051,121900.0,121890.0,0.001]
[1752485358622,0.68152969,121900.0,121890.0,0.001]
[1752485358872,0.99689051,121900.0,121890.0,0.001]
[1752485359601,1.02149351,121900.0,121890.0,0.001]
[1752485362106,0.70613269,121900.0,121890.0,0.001]
[1752485362320,1.02149351,121900.0,121890.0,0.001]
[1752485362575,0.26536059,121870.0,121860.0,0.01660138]
[1752485362787,0.68431852,121870.0,121860.0,0.01660138]
[1752485363200,1.03561807,121870.0,121820.0,0.0191]
[1752485363414,0.16417665,121820.0,121810.0,0.0002]
[1752485363613,0.16416317,121830.0,121820.0,0.0191]
[1752485363860,0.18057846,121830.0,121820.0,0.16687]
[1752485364041,0.19720472,121830.0,121820.0,0.03863]
[1752485364262,0.21362028,121830.0,121820.0,0.16683]
[1752485364464,0.2054124,121830.0,121820.0,0.16683]
[1752485364691,0.21362022,121830.0,121820.0,0.16683]
[1752485364896,0.20656527,121830.0,121820.0,0.18324759]
[1752485365034,0.20656527,121830.0,121820.0,0.04683883]
[1752485365245,0.16531604,121830.0,121820.0,0.18380665]
[1752485365462,0.17152365,121830.0,121820.0,0.34742424]
[1752485365634,0.16331604,121830.0,121820.0,0.23564142]
[1752485365828,0.16331604,121830.0,121820.0,0.37204998]
[1752485366210,0.27453653,121830.0,121820.0,0.12816]
[1752485366435,0.25091315,121830.0,121810.0,0.1917995]
[1752485366573,0.18073141,121830.0,121820.0,0.01973]
[1752485366779,0.20535519,121830.0,121820.0,0.14797]
[1752485366974,0.19418949,121830.0,121820.0,0.14797]
[1752485367182,0.20239764,121830.0,121820.0,0.14797]
[1752485367578,0.20239764,121830.0,121820.0,0.01973]
[1752485367828,0.19418949,121830.0,121820.0,0.14793]
[1752485368029,0.20239764,121830.0,121820.0,0.14793]
[1752485368240,0.19418949,121830.0,121820.0,0.14793]
[1752485368540,0.17777365,121830.0,121820.0,0.14793]
[1752485368768,0.1859814,121830.0,121820.0,0.14793]
[1752485368889,0.20239724,121830.0,121820.0,0.14793]
[1752485369622,0.19418922,121830.0,121820.0,0.14793]
[1752485369841,0.20239717,121830.0,121820.0,0.14793]
[1752485369988,0.17777365,121830.0,121820.0,0.31210665]
[1752485370218,0.001,121830.0,121820.0,0.66276499]
[1752485370428,0.001,121830.0,121820.0,0.55143191]
[1752485370637,0.001,121830.0,121820.0,0.67951191]
[1752485370838,0.001,121830.0,121820.0,0.36419109]
[1752485371066,0.001,121830.0,121820.0,0.36415109]
[1752485371464,0.001,121830.0,121820.0,0.76085902]
[1752485371669,0.001,121830.0,121820.0,1.20085902]
[1752485371868,0.001,121830.0,121820.0,1.21539987]
[1752485372513,0.06507769,121860.0,121850.0,0.22895585]
[1752485372822,0.06507769,121860.0,121850.0,0.48635696]
[1752485373574,0.06507769,121860.0,121850.0,0.48668696]
[1752485373807,0.06507769,121860.0,121850.0,0.88339489]
[1752485374461,0.06507769,121860.0,121850.0,0.88439489]
[1752485375075,0.06807769,121860.0,121850.0,0.88439489]
[1752485375310,0.06807769,121860.0,121850.0,0.88539489]
[1752485375532,0.003,121860.0,121850.0,1.54075571]
[1752485375751,0.06507769,121880.0,121870.0,0.22822486]
[1752485375961,0.06507769,121880.0,121870.0,0.88158279]
[1752485376109,0.06507769,121880.0,121870.0,1.07830279]
[1752485376319,0.06507769,121880.0,121870.0,1.07863279]
[1752485376900,0.06507769,121910.0,121900.0,0.18867841]
[1752485377113,0.06507769,121910.0,121900.0,0.46490841]
[1752485377744,0.06507769,121910.0,121900.0,0.88174634]
[1752485378141,0.0652313,121910.0,121900.0,0.88174634]
[1752485378352,0.0652313,121910.0,121900.0,0.56638552]
[1752485378560,0.0692313,121910.0,121900.0,0.56738552]
[1752485378763,0.0692313,121910.0,121900.0,0.56705552]
[1752485378965,0.0702313,121910.0,121900.0,0.56705552]
[1752485380391,0.0692313,121910.0,121900.0,0.56705552]
[1752485380845,0.69114974,121910.0,121900.0,0.001]
[1752485381052,0.00820425,121880.0,121870.0,0.31683594]
[1752485381256,0.01035425,121880.0,121870.0,0.31683594]
[1752485381405,0.18575446,121880.0,121870.0,0.30863095]
[1752485381726,0.00525,121880.0,121870.0,0.31683594]
[1752485381930,0.01345432,121880.0,121870.0,0.31683594]
[1752485382132,0.00525,121880.0,121870.0,0.31683594]
[1752485382345,0.22816005,121890.0,121880.0,0.17230048]
[1752485382583,0.26616516,121890.0,121880.0,0.1282]
[1752485382798,0.2661657,121890.0,121880.0,0.13640479]
[1752485382979,0.25796199,121890.0,121880.0,0.1282]
[1752485383919,0.25796199,121890.0,121880.0,0.13640479]
[1752485384303,0.25796199,121890.0,121880.0,0.14460951]
[1752485384679,0.24975808,121890.0,121880.0,0.1282]
[1752485384904,0.24975808,121890.0,121880.0,0.00820479]
[1752485385081,0.24975808,121890.0,121880.0,0.13632479]
[1752485385443,0.34965643,121910.0,121890.0,0.17228634]
[1752485385732,0.32703919,121910.0,121900.0,0.12804]
[1752485385893,0.32900919,121910.0,121900.0,0.12804]
[1752485386293,0.25088208,121910.0,121900.0,0.12804]
[1752485386496,0.26728648,121910.0,121900.0,0.30847551]
[1752485386702,0.26728641,121910.0,121900.0,0.30847551]
[1752485386910,0.26728688,121910.0,121900.0,0.17227227]
[1752485387132,0.26728688,121910.0,121900.0,0.30847558]
[1752485387877,0.26728688,121910.0,121900.0,0.32488199]
[1752485388081,0.26728688,121910.0,121900.0,0.33308503]
[1752485388292,0.25908418,121910.0,121900.0,0.33308503]
[1752485388468,0.07665346,121910.0,121900.0,0.33361463]
[1752485388613,0.00835577,121910.0,121900.0,0.33361463]
[1752485388820,0.01655807,121910.0,121900.0,0.33361463]
[1752485389053,0.00835577,121910.0,121900.0,0.33361463]
[1752485389479,0.02476043,121910.0,121900.0,0.33361463]
[1752485389686,0.03296286,121910.0,121900.0,0.33361463]
[1752485390010,0.03696286,121910.0,121900.0,0.33361463]
[1752485390370,0.04196286,121910.0,121900.0,0.33461463]
[1752485390739,0.00515361,121910.0,121900.0,0.33461463]
[1752485390871,0.00815361,121910.0,121900.0,0.35481463]
[1752485392755,0.00815361,121910.0,121900.0,0.64272256]
[1752485392965,0.00815361,121910.0,121900.0,0.77085256]
[1752485393106,0.00815361,121910.0,121900.0,0.64305256]
[1752485393320,0.00815361,121910.0,121900.0,0.77085256]
[1752485393560,0.00515361,121910.0,121900.0,1.11085256]
[1752485393759,0.00015361,121910.0,121900.0,0.98205256]
[1752485393990,0.00515361,121910.0,121900.0,1.11081256]
[1752485394146,0.00515361,121910.0,121900.0,0.98305256]
[1752485394344,0.00415361,121910.0,121900.0,1.11081256]
[1752485395139,0.00415361,121910.0,121900.0,0.98305256]
[1752485395367,0.00415361,121910.0,121900.0,1.11073256]
[1752485395845,0.00415361,121910.0,121900.0,0.98305256]
[1752485396089,0.00415361,121910.0,121900.0,0.66769174]
[1752485396353,0.00415361,121910.0,121900.0,0.77584174]
[1752485397780,0.00415361,121910.0,121900.0,0.79504174]
[1752485397979,0.00415361,121910.0,121900.0,0.66736174]
[1752485398257,0.00415361,121910.0,121900.0,1.11040256]
[1752485398510,0.00415361,121910.0,121900.0,0.66736174]
[1752485398712,0.00415361,121910.0,121900.0,0.79496174]
[1752485400447,0.19419906,121910.0,121900.0,0.12313321]
[1752485400682,0.01640587,121900.0,121890.0,0.18869255]
[1752485400903,0.35339283,121900.0,121890.0,0.19689619]
[1752485401120,0.36159573,121900.0,121890.0,0.18869255]
[1752485401349,0.37800201,121900.0,121890.0,0.19689619]
[1752485401570,0.39710201,121900.0,121890.0,0.32313255]
[1752485401845,0.86832944,121900.0,121880.0,0.17230008]
[1752485402063,0.01640722,121890.0,121880.0,0.18050493]
[1752485402291,0.00519,121890.0,121880.0,0.33135363]
[1752485402457,0.01339351,121890.0,121880.0,0.33135363]
[1752485402683,0.00519,121890.0,121880.0,0.33188363]
[1752485402887,0.00322,121900.0,121890.0,0.1968976]
[1752485403089,0.02159573,121900.0,121890.0,0.18049025]
[1752485403267,0.02151472,121900.0,121890.0,0.18869389]
[1752485403614,0.36971782,121900.0,121890.0,0.18049025]
[1752485403880,0.36971776,121900.0,121890.0,0.1968976]
[1752485404124,0.36971776,121900.0,121890.0,0.18049025]
[1752485404253,0.54199024,121900.0,121890.0,0.13448]
[1752485404454,0.552787,121900.0,121890.0,0.13448]
[1752485404659,0.20458383,121900.0,121890.0,0.14268411]
[1752485404853,0.19538079,121900.0,121890.0,0.159092]
[1752485405329,0.20358383,121900.0,121890.0,0.15080809]
[1752485405511,0.20758383,121900.0,121890.0,0.15180809]
[1752485405706,0.18138072,121900.0,121890.0,0.31589045]
[1752485405909,0.00697,121900.0,121890.0,0.33429787]
[1752485406114,0.005,121900.0,121890.0,0.33429787]
[1752485406704,0.01517297,121900.0,121890.0,0.32609429]
[1752485406900,0.0183929,121900.0,121890.0,0.32613429]
[1752485407301,0.01019,121900.0,121890.0,0.33433793]
[1752485408180,0.0183929,121900.0,121890.0,0.19169429]
[1752485408381,0.0183929,121900.0,121890.0,0.33425807]
[1752485408585,0.01839283,121900.0,121890.0,0.32605429]
[1752485408735,0.01839283,121900.0,121890.0,0.33425807]
[1752485408941,0.01839283,121900.0,121890.0,0.20610178]
[1752485409161,0.19066463,121900.0,121890.0,0.19789807]
[1752485409383,0.0183929,121900.0,121890.0,0.332178]
[1752485409585,0.0183929,121900.0,121890.0,0.34038164]
[1752485409586,0.01019,121900.0,121890.0,0.34038164]
[1752485409853,0.01839283,121900.0,121890.0,0.332178]
[1752485410049,0.01019,121900.0,121890.0,0.34038164]
[1752485410698,0.01019,121900.0,121890.0,0.334098]
[1752485411025,0.01019,121900.0,121890.0,0.20810164]
[1752485411235,0.01019,121900.0,121890.0,0.334098]
[1752485411449,0.01019,121900.0,121890.0,0.34230164]
[1752485412841,0.01839283,121900.0,121890.0,0.34230164]
[1752485413155,0.1742589,121900.0,121890.0,0.334098]
[1752485413362,0.1742589,121900.0,121890.0,0.20810164]
[1752485413560,0.01019,121900.0,121890.0,0.34218164]
[1752485414832,0.026596,121900.0,121890.0,0.19169436]
[1752485414979,0.01019,121900.0,121890.0,0.34018184]
[1752485415179,0.0183929,121900.0,121890.0,0.34018184]
[1752485416309,0.01839283,121900.0,121890.0,0.34018184]
[1752485416517,0.01839283,121900.0,121890.0,0.33968184]
[1752485416723,0.01839283,121900.0,121890.0,0.33956184]
[1752485417131,0.01019,121900.0,121890.0,0.33956184]
[1752485417334,0.01839283,121900.0,121890.0,0.33956184]
[1752485417542,0.01019,121900.0,121890.0,0.33956184]
[1752485417744,0.0183929,121900.0,121890.0,0.33956184]
[1752485418092,0.01839283,121900.0,121890.0,0.20560184]
[1752485418287,0.02659573,121900.0,121890.0,0.33956184]
[1752485418772,0.03479877,121900.0,121890.0,0.33956184]
[1752485419157,0.19886767,121900.0,121890.0,0.16508236]
[1752485419359,0.19886767,121900.0,121890.0,0.32361376]
[1752485419783,0.02659573,121900.0,121890.0,0.32361376]
[1752485420160,0.03479877,121900.0,121890.0,0.32361376]
[1752485420626,0.0347987,121900.0,121890.0,0.32361376]
[1752485421032,0.0347987,121900.0,121890.0,0.18969376]
[1752485421332,0.0347987,121900.0,121890.0,0.32345376]
[1752485421538,0.02659573,121900.0,121890.0,0.32345376]
[1752485421885,0.03479877,121900.0,121890.0,0.32345376]
[1752485422264,0.03479877,121900.0,121890.0,0.18969376]
[1752485422387,0.03479877,121900.0,121890.0,0.32341376]
[1752485423377,0.19886767,121900.0,121890.0,0.31521012]
[1752485423586,0.19886767,121900.0,121890.0,0.32341376]
[1752485423786,0.0347987,121900.0,121890.0,0.32333376]
[1752485424238,0.0430018,121900.0,121890.0,0.32333376]
[1752485424480,0.0430018,121900.0,121890.0,0.18969376]
[1752485424683,0.0430018,121900.0,121890.0,0.32333383]
[1752485424887,0.0430018,121900.0,121890.0,0.33153747]
[1752485425012,0.36579638,121900.0,121890.0,0.33153747]
[1752485425217,0.21527394,121900.0,121890.0,0.32333383]
[1752485425458,0.52986528,121900.0,121890.0,0.33153747]
[1752485425607,0.36579632,121900.0,121890.0,0.33153747]
[1752485425813,0.21527374,121900.0,121890.0,0.33153747]
[1752485426086,0.55435989,121900.0,121890.0,0.001]
[1752485426295,1.07675774,121900.0,121890.0,0.001]
[1752485426520,1.03850513,121900.0,121890.0,0.001]
[1752485426723,1.05304598,121900.0,121890.0,0.001]
[1752485427120,1.07764998,121900.0,121890.0,0.001]
[1752485427948,1.40044456,121900.0,121890.0,0.001]
[1752485428121,1.45044456,121900.0,121890.0,0.001]
[1752485428309,1.5317619,121900.0,121890.0,0.001]
[1752485428543,0.22051974,121870.0,121860.0,0.1]
[1752485428749,0.89426143,121870.0,121860.0,0.1]
[1752485428949,0.88892762,121870.0,121860.0,0.1]
[1752485429749,0.5984946,121870.0,121860.0,0.1]
[1752485430569,0.6004946,121870.0,121860.0,0.1]
[1752485430805,0.5801946,121870.0,121860.0,0.1]
[1752485431007,0.3127546,121870.0,121860.0,0.26412276]
[1752485431216,0.32095999,121870.0,121860.0,0.28053496]
[1752485431538,0.32195958,121870.0,121860.0,0.28874089]
[1752485431744,0.31375473,121870.0,121860.0,0.1]
[1752485432069,0.23740762,121870.0,121860.0,0.28153482]
[1752485432273,0.03218775,121870.0,121860.0,0.29694634]
[1752485432474,0.00215353,121870.0,121860.0,0.43277634]
[1752485432677,0.00215353,121870.0,121860.0,0.45257634]
[1752485432882,0.01035845,121870.0,121860.0,0.45257634]
[1752485433050,0.01735838,121870.0,121860.0,0.45257634]
[1752485433280,0.02363746,121870.0,121860.0,0.45257634]
[1752485433484,0.00215353,121870.0,121860.0,0.45257634]
[1752485433854,0.00715353,121870.0,121860.0,0.45257634]
[1752485434201,0.02356357,121870.0,121860.0,0.45253634]
[1752485434417,0.01535845,121870.0,121860.0,0.31889634]
[1752485434626,0.03797389,121870.0,121860.0,0.45253634]
[1752485434927,0.04314396,121870.0,121860.0,0.43273634]
[1752485435124,0.03493863,121870.0,121860.0,0.43273634]
[1752485435337,0.03493856,121870.0,121860.0,0.43273634]
[1752485435547,0.04514382,121870.0,121860.0,0.43273634]
[1752485435749,0.04514375,121870.0,121860.0,0.43273634]
[1752485435983,0.02673344,121870.0,121860.0,0.43273634]
[1752485436137,0.03493856,121870.0,121860.0,0.43273634]
[1752485436337,0.03693856,121870.0,121860.0,0.43273634]
[1752485436539,0.02873344,121870.0,121860.0,0.43273634]
[1752485436737,0.03693856,121870.0,121860.0,0.43273634]
[1752485436968,0.01232353,121870.0,121860.0,0.29909634]
[1752485437147,0.00715353,121870.0,121860.0,0.31989634]
[1752485437354,0.00715353,121870.0,121860.0,0.45361634]
[1752485438046,0.00715353,121870.0,121860.0,0.31989634]
[1752485438418,0.00715353,121870.0,121860.0,0.45361634]
[1752485438991,0.01535838,121870.0,121860.0,0.31989634]
[1752485439196,0.00715353,121870.0,121860.0,0.45353634]
[1752485439636,0.00715353,121870.0,121860.0,0.31989634]
[1752485439837,0.01535845,121870.0,121860.0,0.43269634]
[1752485440010,0.01836845,121870.0,121860.0,0.29909634]
[1752485440213,0.01836845,121870.0,121860.0,0.43273634]
[1752485441223,0.01535845,121870.0,121860.0,0.43273634]
[1752485442927,0.00715353,121870.0,121860.0,0.43265634]
[1752485443154,0.01535838,121870.0,121860.0,0.43265634]
[1752485443377,0.01535838,121870.0,121860.0,0.43257634]
[1752485443583,0.0235633,121870.0,121860.0,0.43257634]
[1752485443966,0.01535838,121870.0,121860.0,0.43257634]
[1752485444162,0.00715353,121870.0,121860.0,0.43257634]
[1752485444516,0.01535845,121870.0,121860.0,0.43257634]
[1752485445108,0.02356351,121870.0,121860.0,0.43257634]
[1752485445337,0.02356351,121870.0,121860.0,0.29909634]
[1752485445553,0.01535845,121870.0,121860.0,0.43245634]
[1752485446530,0.02356351,121870.0,121860.0,0.43245634]
[1752485446727,0.02655344,121870.0,121860.0,0.43245634]
[1752485446956,0.01834845,121870.0,121860.0,0.43245634]
[1752485447158,0.02655351,121870.0,121860.0,0.43245634]
[1752485447580,0.01834845,121870.0,121860.0,0.43245634]
[1752485447746,0.02655344,121870.0,121860.0,0.43245634]
[1752485448434,0.01834845,121870.0,121860.0,0.43245634]
[1752485449108,0.02655351,121870.0,121860.0,0.43245634]
[1752485449940,0.01834845,121870.0,121860.0,0.43245634]
[1752485451339,0.02655351,121870.0,121860.0,0.43245634]
[1752485452017,0.01834845,121870.0,121860.0,0.43245634]
[1752485452358,0.02655351,121870.0,121860.0,0.43200865]
[1752485453225,0.01834845,121870.0,121860.0,0.43200865]
[1752485453426,0.02655344,121870.0,121860.0,0.43200865]
[1752485453644,0.0347585,121870.0,121860.0,0.43200865]
[1752485453986,0.02655344,121870.0,121860.0,0.43200865]
[1752485455567,0.03475856,121870.0,121860.0,0.43200865]
[1752485455763,0.02655344,121870.0,121860.0,0.43200865]
[1752485456183,0.03475856,121870.0,121860.0,0.43200865]
[1752485456515,0.02655344,121870.0,121860.0,0.43200865]
[1752485456730,0.03475856,121870.0,121860.0,0.43200865]
[1752485456914,0.02655344,121870.0,121860.0,0.43200865]
[1752485457851,0.0347585,121870.0,121860.0,0.43200865]
[1752485457985,0.01014353,121870.0,121860.0,0.43200865]
[1752485458202,0.01834845,121870.0,121860.0,0.43200865]
[1752485458649,0.02655351,121870.0,121860.0,0.43200865]
[1752485458848,0.01834845,121870.0,121860.0,0.43200865]
[1752485459091,0.02655351,121870.0,121860.0,0.43189498]
[1752485459298,0.01014353,121870.0,121860.0,0.43189498]
[1752485459497,0.01834852,121870.0,121860.0,0.43150525]
[1752485460005,0.01834845,121870.0,121860.0,0.5298814]
[1752485460205,0.01014353,121870.0,121860.0,0.5298814]
[1752485460407,0.01548305,121870.0,121860.0,0.52923186]
[1752485460582,0.0072782,121870.0,121860.0,0.54943186]
[1752485460790,0.0072782,121870.0,121860.0,0.97549396]
[1752485461245,0.0072782,121870.0,121860.0,0.9750468]
[1752485461374,0.00715353,121870.0,121860.0,0.97492213]
[1752485461936,0.00215353,121870.0,121860.0,0.97492213]
[1752485462105,0.00015353,121870.0,121860.0,0.97492213]
[1752485462514,0.00215353,121870.0,121860.0,0.84312213]
[1752485462866,0.00215353,121870.0,121860.0,0.65300521]
[1752485463066,0.00215353,121870.0,121860.0,0.97592213]
[1752485464153,0.00215353,121870.0,121860.0,0.65300521]
[1752485464388,0.00215353,121870.0,121860.0,0.97592213]
[1752485465481,0.00215353,121870.0,121860.0,1.27162213]
[1752485465698,0.00215353,121870.0,121860.0,1.27150213]
[1752485465910,0.00215353,121870.0,121860.0,1.13882213]
[1752485466124,0.00215353,121870.0,121860.0,1.27150213]
[1752485468655,0.00215353,121870.0,121860.0,1.27142213]
[1752485468997,0.00215353,121870.0,121860.0,1.28464964]
[1752485470319,0.00215353,121870.0,121860.0,1.15204964]
[1752485470540,0.00215353,121870.0,121860.0,1.28460964]
[1752485470760,0.00215353,121870.0,121860.0,1.49204964]
[1752485470935,0.00215353,121870.0,121860.0,1.62460964]
[1752485471357,0.00215353,121870.0,121860.0,1.63915049]
[1752485471519,0.00215353,121870.0,121860.0,1.82950741]
[1752485471520,1e-08,121870.0,121860.0,1.82950741]
[1752485471907,1e-08,121870.0,121860.0,1.96202741]
[1752485472483,0.06507769,121890.0,121880.0,0.22920939]
[1752485472704,0.06507769,121890.0,121880.0,0.76850453]
[1752485472906,0.06507769,121890.0,121880.0,0.76991453]
[1752485473572,0.06507769,121890.0,121880.0,1.09283145]
[1752485473776,0.06507769,121890.0,121880.0,0.96031145]
[1752485473998,0.06507769,121890.0,121880.0,0.63739453]
[1752485474194,0.06507769,121890.0,121880.0,0.76987453]
[1752485474601,0.06607769,121890.0,121880.0,0.77087453]
[1752485474816,0.06607769,121890.0,121880.0,0.63839453]
[1752485475004,0.06607769,121890.0,121880.0,1.11087453]
[1752485475214,0.06607769,121890.0,121880.0,1.11187453]
[1752485476388,0.06607769,121890.0,121880.0,1.11183453]
[1752485477404,0.06607769,121890.0,121880.0,1.40753453]
[1752485478755,0.06607769,121890.0,121880.0,1.59801145]
[1752485478956,0.06507769,121910.0,121900.0,0.21037841]
[1752485479104,0.06507769,121910.0,121900.0,1.04462244]
[1752485480226,0.07007769,121910.0,121900.0,1.04562244]
[1752485481697,0.07107769,121910.0,121900.0,1.04562244]
[1752485481898,0.006,121910.0,121900.0,1.40795244]
[1752485483347,0.001,121910.0,121900.0,1.40695244]
[1752485483762,0.003,121910.0,121900.0,0.93042552]
[1752485483978,0.02902,121910.0,121900.0,1.03896552]
[1752485484368,0.09409769,121910.0,121900.0,0.90672552]
[1752485484501,0.09409769,121910.0,121900.0,1.03900552]
[1752485484698,0.09309769,121910.0,121900.0,1.03900552]
[1752485486263,0.00702,121910.0,121900.0,1.04100552]
[1752485486491,0.00702,121910.0,121900.0,1.36392244]
[1752485486835,0.00498,121910.0,121900.0,1.36392244]
[1752485487269,0.00498,121910.0,121900.0,1.23164244]
[1752485487437,0.002,121910.0,121900.0,1.36392244]
[1752485487783,0.002,121910.0,121900.0,1.38522244]
[1752485490235,0.002,121910.0,121900.0,1.40679244]
[1752485490437,1e-08,121910.0,121900.0,1.40683244]
[1752485490655,1e-08,121910.0,121900.0,1.27455244]
[1752485490849,1e-08,121910.0,121900.0,1.32371244]
[1752485490997,1e-08,121910.0,121900.0,1.45603244]
[1752485491673,1e-08,121910.0,121900.0,1.32371244]
[1752485491895,1e-08,121910.0,121900.0,1.45607244]
[1752485492108,1e-08,121910.0,121900.0,0.95163552]
[1752485492315,1e-08,121910.0,121900.0,1.25294244]
[1752485492743,1e-08,121910.0,121900.0,1.38534244]
[1752485492893,1e-08,121910.0,121900.0,1.40685244]
[1752485493814,0.00502001,121910.0,121900.0,0.90872552]
[1752485494024,0.02532001,121910.0,121900.0,0.90672552]
[1752485494180,0.02532001,121910.0,121900.0,0.56672552]
[1752485494402,0.0903977,121910.0,121900.0,0.90672552]
[1752485494613,0.0903977,121910.0,121900.0,1.03924552]
[1752485495233,0.0903977,121910.0,121900.0,0.74350552]
[1752485495425,0.0903977,121910.0,121900.0,0.61102552]
[1752485495862,0.0903977,121910.0,121900.0,0.74350552]
[1752485496035,0.0903977,121910.0,121900.0,0.61102552]
[1752485496448,0.0903977,121910.0,121900.0,0.18147544]
[1752485496667,0.46822468,121910.0,121900.0,0.18967868]
[1752485496879,0.46822468,121910.0,121900.0,0.33040185]
[1752485497221,0.46002191,121910.0,121900.0,0.33860482]
[1752485497441,0.1124977,121910.0,121900.0,0.20608482]
[1752485497646,0.1144977,121910.0,121900.0,0.20608482]
[1752485497844,0.1144977,121910.0,121900.0,0.33872482]
[1752485498535,0.02732001,121910.0,121900.0,0.28743193]
[1752485498739,0.00404001,121910.0,121900.0,0.74498885]
[1752485498937,0.00404001,121910.0,121900.0,0.74398885]
[1752485498938,0.002,121910.0,121900.0,0.74398885]
[1752485499245,0.007,121910.0,121900.0,0.74498885]
[1752485500875,0.007,121910.0,121900.0,0.76628885]
[1752485501074,0.007,121910.0,121900.0,1.10628885]
[1752485502149,0.005,121910.0,121900.0,1.10620885]
[1752485502352,0.01003,121910.0,121900.0,1.08490885]
[1752485502493,0.02593,121910.0,121900.0,1.08190885]
[1752485502700,0.02593,121910.0,121900.0,0.75899193]
[1752485502900,0.02793,121910.0,121900.0,0.75999193]
[1752485503435,0.02793,121910.0,121900.0,1.08290885]
[1752485503640,0.00703,121910.0,121900.0,1.08290885]
[1752485504949,0.00703,121910.0,121900.0,0.95232885]
[1752485505104,0.00703,121910.0,121900.0,1.08476885]
[1752485507233,0.00703,121910.0,121900.0,0.95232885]
[1752485507464,0.00703,121910.0,121900.0,1.08464885]
[1752485508394,0.002,121910.0,121900.0,0.97372885]
[1752485508537,0.02459,121910.0,121900.0,0.95034885]
[1752485508710,0.02758,121910.0,121900.0,1.08270885]
[1752485510718,0.00698,121910.0,121900.0,1.08468885]
[1752485511600,0.002,121910.0,121900.0,1.08468885]
[1752485513319,0.002,121910.0,121900.0,1.08452885]
[1752485513503,0.002,121910.0,121900.0,1.10512885]
[1752485513922,0.002,121910.0,121900.0,0.97292885]
[1752485514363,1e-08,121910.0,121900.0,0.99593885]
[1752485514581,1e-08,121910.0,121900.0,1.12805885]
[1752485515160,1e-08,121910.0,121900.0,0.99593885]
[1752485515389,1e-08,121910.0,121900.0,1.12805885]
[1752485515590,0.02499,121940.0,121930.0,0.18863199]
[1752485515799,0.02698,121940.0,121930.0,0.72501602]
[1752485516226,0.04019506,121940.0,121930.0,0.2699791]
[1752485516400,0.02698,121940.0,121930.0,0.4020191]
[1752485516804,0.02713355,121940.0,121930.0,0.4020191]
[1752485517011,0.05013355,121940.0,121930.0,0.4030191]
[1752485517673,0.05013355,121940.0,121930.0,0.2709791]
[1752485518055,0.05933369,121940.0,121930.0,0.18963199]
[1752485518235,0.05113355,121940.0,121930.0,0.32163199]
[1752485518396,0.0645047,121940.0,121930.0,0.32163199]
[1752485518931,0.0645047,121940.0,121930.0,0.18963199]
[1752485519358,0.0645047,121940.0,121930.0,0.32163199]
[1752485519563,0.03113355,121940.0,121930.0,0.18963199]
[1752485519782,0.00913355,121940.0,121930.0,0.72787602]
[1752485520192,0.00714355,121940.0,121930.0,0.72787602]
[1752485520396,0.00415355,121940.0,121930.0,0.72787602]
[1752485520568,0.00415355,121940.0,121930.0,0.74967602]
[1752485521534,0.00415355,121940.0,121930.0,1.08967602]
[1752485522965,0.00415355,121940.0,121930.0,0.7667591]
[1752485535047,0.00415355,121940.0,121930.0,1.08165191]
[1752485535396,0.00415355,121940.0,121930.0,1.10506191]
[1752485535613,1e-08,121940.0,121930.0,1.10506191]
[1752485535849,1e-08,121940.0,121930.0,1.1295883]
[1752485536067,1e-08,121940.0,121930.0,0.81469549]
[1752485536254,0.08908769,121970.0,121960.0,0.1885856]
[1752485536471,0.09115769,121970.0,121960.0,0.27044382]
[1752485536679,0.09115769,121970.0,121960.0,0.40196382]
[1752485537055,0.10469614,121970.0,121960.0,0.40196382]
[1752485537276,0.10469614,121970.0,121960.0,0.27044382]
[1752485537515,0.10469614,121970.0,121960.0,0.40196382]
[1752485538237,0.10669614,121970.0,121960.0,0.40196382]
[1752485538784,0.10769614,121970.0,121960.0,0.40196382]
[1752485539603,0.09415769,121970.0,121960.0,0.40196382]
[1752485539821,0.003,121970.0,121960.0,0.42423382]
[1752485540022,0.003,121970.0,121960.0,1.08053663]
[1752485540222,0.003,121970.0,121960.0,1.10093663]
[1752485540451,0.003,121970.0,121960.0,1.09952663]
[1752485540659,0.001,121970.0,121960.0,1.09952663]
[1752485541062,0.002,121970.0,121960.0,0.78463382]
[1752485541281,0.001,121970.0,121960.0,0.78463382]
[1752485541482,0.08888769,121990.0,121980.0,0.18855467]
[1752485541860,0.08794769,121990.0,121980.0,0.53298178]
[1752485542268,0.09095769,121990.0,121980.0,0.53298178]
[1752485542877,0.09295769,121990.0,121980.0,0.53298178]
[1752485543765,0.09595769,121990.0,121980.0,0.53298178]
[1752485545583,0.03088,121990.0,121980.0,0.53298178]
[1752485549331,0.38166812,121990.0,121980.0,0.31987467]
[1752485549639,0.3734712,121990.0,121980.0,0.31987467]
[1752485549863,0.38166798,121990.0,121980.0,0.31987467]
[1752485550191,0.3734712,121990.0,121980.0,0.31987467]
[1752485550439,0.3734712,121990.0,121980.0,0.31991467]
[1752485552045,0.37330724,121990.0,121980.0,0.31991467]
[1752485552527,0.38150409,121990.0,121980.0,0.18855467]
[1752485552733,0.38150409,121990.0,121980.0,0.31991467]
[1752485552933,0.37330724,121990.0,121980.0,0.31991467]
[1752485553378,0.38150402,121990.0,121980.0,0.31991467]
[1752485553890,0.37330724,121990.0,121980.0,0.31991467]
[1752485554065,0.37330724,121990.0,121980.0,0.18855467]
[1752485554269,0.37330724,121990.0,121980.0,0.31987467]
[1752485555629,0.35300724,121990.0,121980.0,0.18855467]
[1752485555834,0.35300724,121990.0,121980.0,0.31983467]
[1752485555990,0.03071604,121990.0,121980.0,0.31983467]
[1752485556406,0.03071604,121990.0,121980.0,0.18855467]
[1752485556665,0.03071604,121990.0,121980.0,0.31979467]
[1752485556982,0.03071604,121990.0,121980.0,0.18855467]
[1752485557189,0.03071604,121990.0,121980.0,0.31979467]
[1752485561711,0.35300724,121990.0,121980.0,0.31979467]
[1752485561917,0.03071604,121990.0,121980.0,0.31979467]
[1752485562118,0.35300724,121990.0,121980.0,0.31979467]
[1752485562536,0.03071604,121990.0,121980.0,0.31979467]
[1752485562722,0.35300724,121990.0,121980.0,0.31979467]
[1752485565090,0.35300724,121990.0,121980.0,0.18855467]
[1752485565293,0.37380724,121990.0,121980.0,0.31951467]
[1752485565765,0.05151604,121990.0,121980.0,0.31951467]
[1752485565989,0.03071604,121990.0,121980.0,0.31951467]
[1752485566224,0.35300724,121990.0,121980.0,0.31951467]
[1752485568090,0.35300724,121990.0,121980.0,0.18855467]